Workbook

Sheet Principal

Sheet LEIA-ME
A1: Gerador de Matrizes de Programação Linear para Planejamento Florestal
A2: Luiz Carlos Estraviz Rodriguez
A3: lcer@esalq.usp.br
A4: ESALQ/USP
A5: 2015
A6: José Mauro M. Ávila Paz Moreira
A7: jmoreira@esalq.usp.br
A8: ESALQ/USP
A9: 2006
A11: A ação da macro ocorre sobre a folha "Principal".
A12: Alguns exemplos podem ser encontrados nas seguintes folhas:
A13: 1 - Problema_Modelo_Estratos (um produto, corte raso, 6 estratos)
A14: 2 - Problema_Modelo_Talhoes (idem 2, mas com 32 parcelas não agregadas em estratos)
A15: 3 - Problema_Portugal (um produto, corte raso, 3 estratos)
A16: 4 - Prob_Mod_Un_Estoque_Area (idem 1, com controle de estoque e área por classes de idade)
A17: 5 - Problema_Uruguay (incompleto, quatro produtos com desbastes)
A19: Para executar a macro copie um dos problemas para a folha "Principal" (ou clique no link acima e, em seguida,
A20: clique Ctrl-t), ou digite os seus próprios dados. Em seguida chame a macro com Ctrl-g.
A21: A macro pode gerar três modelos básicos:
A22: 1. Com pisos de produção
A23: 2. Com variaveis endógenas e produção anual não decrescente
A24: 3. Com metas (os desvios de produção tem peso igual ao
A25: valor presente do respectivo preço)
A27: A macro permite a inclusão de restrições operacionais (quantas forem necessárias),
A28: restrições de controle de área e estoque por classes de idade (referentes ao último ano do
A29: horizonte de planejamento). Para modelos com metas, neste caso, os pesos são unitários.
A30: Estes pesos (penalidades) podem não refletir adequadamente o valor desejado pelo analista.
A32: Os coeficientes da função objetivo podem representar o valor presente das receitas
A33: (se apenas a produção dos produtos for declarada na folha principal)
A34: ou podem representar o valor presente líquido do regime de manejo
A35: (se forem declarados, além da produção, os valores de custos e o VET).
A36: Para que os coeficientes da função objetivo representem a soma simples da
A37: produção por regime de manejo, entre com taxa de juros = 0.0, preços = 1.00,
A38: e omita os valores de custos e do Valor Esperado da Terra (VET).

Sheet Problema_Modelo_Estratos
A1: Estrato | B1: Prescrição | C1: Ano | D1: Produto | E1: Produção | F1: Intervenção
A2: U1 | B2: 1 | C2: 1 | D2: Pd1 | E2: 324 | F2: CR
A3: U1 | B3: 1 | C3: 7 | D3: Pd1 | E3: 355 | F3: CC
A4: U1 | B4: 1 | C4: 13 | D4: Pd1 | E4: 324 | F4: CR
A5: U1 | B5: 1 | C5: 19 | D5: Pd1 | E5: 355 | F5: CC
A6: U1 | B6: 2 | C6: 2 | D6: Pd1 | E6: 378 | F6: CR
A7: U1 | B7: 2 | C7: 8 | D7: Pd1 | E7: 355 | F7: CC
A8: U1 | B8: 2 | C8: 15 | D8: Pd1 | E8: 378 | F8: CR
A9: U1 | B9: 2 | C9: 21 | D9: Pd1 | E9: 355 | F9: CC
A10: U1 | B10: 3 | C10: 3 | D10: Pd1 | E10: 425 | F10: CR
A11: U1 | B11: 3 | C11: 9 | D11: Pd1 | E11: 355 | F11: CC
A12: U1 | B12: 3 | C12: 17 | D12: Pd1 | E12: 425 | F12: CR
A13: U1 | B13: 4 | C13: 1 | D13: Pd1 | E13: 324 | F13: CR
A14: U1 | B14: 4 | C14: 8 | D14: Pd1 | E14: 422 | F14: CC
A15: U1 | B15: 4 | C15: 14 | D15: Pd1 | E15: 324 | F15: CR
A16: U1 | B16: 4 | C16: 21 | D16: Pd1 | E16: 422 | F16: CC
A17: U1 | B17: 5 | C17: 2 | D17: Pd1 | E17: 378 | F17: CR
A18: U1 | B18: 5 | C18: 9 | D18: Pd1 | E18: 422 | F18: CC
A19: U1 | B19: 5 | C19: 16 | D19: Pd1 | E19: 378 | F19: CR
A20: U1 | B20: 6 | C20: 3 | D20: Pd1 | E20: 425 | F20: CR
A21: U1 | B21: 6 | C21: 10 | D21: Pd1 | E21: 422 | F21: CC
A22: U1 | B22: 6 | C22: 18 | D22: Pd1 | E22: 425 | F22: CR
A23: U1 | B23: 7 | C23: 1 | D23: Pd1 | E23: 324 | F23: CR
A24: U1 | B24: 7 | C24: 9 | D24: Pd1 | E24: 479 | F24: CC
A25: U1 | B25: 7 | C25: 15 | D25: Pd1 | E25: 324 | F25: CR
A26: U1 | B26: 8 | C26: 2 | D26: Pd1 | E26: 378 | F26: CR
A27: U1 | B27: 8 | C27: 10 | D27: Pd1 | E27: 479 | F27: CC
A28: U1 | B28: 8 | C28: 17 | D28: Pd1 | E28: 378 | F28: CR
A29: U1 | B29: 9 | C29: 3 | D29: Pd1 | E29: 425 | F29: CR
A30: U1 | B30: 9 | C30: 11 | D30: Pd1 | E30: 479 | F30: CC
A31: U1 | B31: 9 | C31: 19 | D31: Pd1 | E31: 425 | F31: CR
A32: U2 | B32: 1 | C32: 2 | D32: Pd1 | E32: 366 | F32: CR
A33: U2 | B33: 1 | C33: 8 | D33: Pd1 | E33: 380 | F33: CC
A34: U2 | B34: 1 | C34: 14 | D34: Pd1 | E34: 366 | F34: CR
A35: U2 | B35: 1 | C35: 20 | D35: Pd1 | E35: 380 | F35: CC
A36: U2 | B36: 2 | C36: 3 | D36: Pd1 | E36: 423 | F36: CR
A37: U2 | B37: 2 | C37: 9 | D37: Pd1 | E37: 380 | F37: CC
A38: U2 | B38: 2 | C38: 16 | D38: Pd1 | E38: 423 | F38: CR
A39: U2 | B39: 3 | C39: 4 | D39: Pd1 | E39: 471 | F39: CR
A40: U2 | B40: 3 | C40: 10 | D40: Pd1 | E40: 380 | F40: CC
A41: U2 | B41: 3 | C41: 18 | D41: Pd1 | E41: 471 | F41: CR
A42: U2 | B42: 4 | C42: 2 | D42: Pd1 | E42: 366 | F42: CR
A43: U2 | B43: 4 | C43: 9 | D43: Pd1 | E43: 455 | F43: CC
A44: U2 | B44: 4 | C44: 15 | D44: Pd1 | E44: 366 | F44: CR
A45: U2 | B45: 5 | C45: 3 | D45: Pd1 | E45: 423 | F45: CR
A46: U2 | B46: 5 | C46: 10 | D46: Pd1 | E46: 455 | F46: CC
A47: U2 | B47: 5 | C47: 17 | D47: Pd1 | E47: 423 | F47: CR
A48: U2 | B48: 6 | C48: 4 | D48: Pd1 | E48: 471 | F48: CR
A49: U2 | B49: 6 | C49: 11 | D49: Pd1 | E49: 455 | F49: CC
A50: U2 | B50: 6 | C50: 19 | D50: Pd1 | E50: 471 | F50: CR
A51: U2 | B51: 7 | C51: 2 | D51: Pd1 | E51: 366 | F51: CR
A52: U2 | B52: 7 | C52: 10 | D52: Pd1 | E52: 520 | F52: CC
A53: U2 | B53: 7 | C53: 16 | D53: Pd1 | E53: 366 | F53: CR
A54: U2 | B54: 8 | C54: 3 | D54: Pd1 | E54: 423 | F54: CR
A55: U2 | B55: 8 | C55: 11 | D55: Pd1 | E55: 520 | F55: CC
A56: U2 | B56: 8 | C56: 18 | D56: Pd1 | E56: 423 | F56: CR
A57: U2 | B57: 9 | C57: 4 | D57: Pd1 | E57: 471 | F57: CR
A58: U2 | B58: 9 | C58: 12 | D58: Pd1 | E58: 520 | F58: CC
A59: U2 | B59: 9 | C59: 20 | D59: Pd1 | E59: 471 | F59: CR
A60: U3 | B60: 1 | C60: 6 | D60: Pd1 | E60: 306 | F60: CC
A61: U3 | B61: 1 | C61: 12 | D61: Pd1 | E61: 293 | F61: CR
A62: U3 | B62: 1 | C62: 18 | D62: Pd1 | E62: 306 | F62: CC
A63: U3 | B63: 2 | C63: 6 | D63: Pd1 | E63: 306 | F63: CC
A64: U3 | B64: 2 | C64: 13 | D64: Pd1 | E64: 338 | F64: CR
A65: U3 | B65: 2 | C65: 19 | D65: Pd1 | E65: 306 | F65: CC
A66: U3 | B66: 3 | C66: 6 | D66: Pd1 | E66: 306 | F66: CC
A67: U3 | B67: 3 | C67: 14 | D67: Pd1 | E67: 375 | F67: CR
A68: U3 | B68: 3 | C68: 20 | D68: Pd1 | E68: 306 | F68: CC
A69: U3 | B69: 4 | C69: 7 | D69: Pd1 | E69: 362 | F69: CC
A70: U3 | B70: 4 | C70: 13 | D70: Pd1 | E70: 293 | F70: CR
A71: U3 | B71: 4 | C71: 20 | D71: Pd1 | E71: 362 | F71: CC
A72: U3 | B72: 5 | C72: 7 | D72: Pd1 | E72: 362 | F72: CC
A73: U3 | B73: 5 | C73: 14 | D73: Pd1 | E73: 338 | F73: CR
A74: U3 | B74: 5 | C74: 21 | D74: Pd1 | E74: 362 | F74: CC
A75: U3 | B75: 6 | C75: 7 | D75: Pd1 | E75: 362 | F75: CC
A76: U3 | B76: 6 | C76: 15 | D76: Pd1 | E76: 375 | F76: CR
A77: U3 | B77: 7 | C77: 8 | D77: Pd1 | E77: 410 | F77: CC
A78: U3 | B78: 7 | C78: 14 | D78: Pd1 | E78: 293 | F78: CR
A79: U3 | B79: 8 | C79: 8 | D79: Pd1 | E79: 410 | F79: CC
A80: U3 | B80: 8 | C80: 15 | D80: Pd1 | E80: 338 | F80: CR
A81: U3 | B81: 9 | C81: 8 | D81: Pd1 | E81: 410 | F81: CC
A82: U3 | B82: 9 | C82: 16 | D82: Pd1 | E82: 375 | F82: CR
A83: U4 | B83: 1 | C83: 2 | D83: Pd1 | E83: 179 | F83: CC
A84: U4 | B84: 1 | C84: 8 | D84: Pd1 | E84: 163 | F84: CR
A85: U4 | B85: 1 | C85: 14 | D85: Pd1 | E85: 179 | F85: CC
A86: U4 | B86: 1 | C86: 20 | D86: Pd1 | E86: 163 | F86: CR
A87: U4 | B87: 2 | C87: 2 | D87: Pd1 | E87: 179 | F87: CC
A88: U4 | B88: 2 | C88: 9 | D88: Pd1 | E88: 192 | F88: CR
A89: U4 | B89: 2 | C89: 15 | D89: Pd1 | E89: 179 | F89: CC
A90: U4 | B90: 3 | C90: 2 | D90: Pd1 | E90: 179 | F90: CC
A91: U4 | B91: 3 | C91: 10 | D91: Pd1 | E91: 217 | F91: CR
A92: U4 | B92: 3 | C92: 16 | D92: Pd1 | E92: 179 | F92: CC
A93: U4 | B93: 4 | C93: 3 | D93: Pd1 | E93: 214 | F93: CC
A94: U4 | B94: 4 | C94: 9 | D94: Pd1 | E94: 163 | F94: CR
A95: U4 | B95: 4 | C95: 16 | D95: Pd1 | E95: 214 | F95: CC
A96: U4 | B96: 5 | C96: 3 | D96: Pd1 | E96: 214 | F96: CC
A97: U4 | B97: 5 | C97: 10 | D97: Pd1 | E97: 192 | F97: CR
A98: U4 | B98: 5 | C98: 17 | D98: Pd1 | E98: 214 | F98: CC
A99: U4 | B99: 6 | C99: 3 | D99: Pd1 | E99: 214 | F99: CC
A100: U4 | B100: 6 | C100: 11 | D100: Pd1 | E100: 217 | F100: CR
A101: U4 | B101: 6 | C101: 18 | D101: Pd1 | E101: 214 | F101: CC
A102: U4 | B102: 7 | C102: 4 | D102: Pd1 | E102: 246 | F102: CC
A103: U4 | B103: 7 | C103: 10 | D103: Pd1 | E103: 163 | F103: CR
A104: U4 | B104: 7 | C104: 18 | D104: Pd1 | E104: 246 | F104: CC
A105: U4 | B105: 8 | C105: 4 | D105: Pd1 | E105: 246 | F105: CC
A106: U4 | B106: 8 | C106: 11 | D106: Pd1 | E106: 192 | F106: CR
A107: U4 | B107: 8 | C107: 19 | D107: Pd1 | E107: 246 | F107: CC
A108: U4 | B108: 9 | C108: 4 | D108: Pd1 | E108: 246 | F108: CC
A109: U4 | B109: 9 | C109: 12 | D109: Pd1 | E109: 217 | F109: CR
A110: U4 | B110: 9 | C110: 20 | D110: Pd1 | E110: 246 | F110: CC
A111: U5 | B111: 1 | C111: 4 | D111: Pd1 | E111: 253 | F111: CR
A112: U5 | B112: 1 | C112: 10 | D112: Pd1 | E112: 287 | F112: CC
A113: U5 | B113: 1 | C113: 16 | D113: Pd1 | E113: 253 | F113: CR
A114: U5 | B114: 2 | C114: 5 | D114: Pd1 | E114: 295 | F114: CR
A115: U5 | B115: 2 | C115: 11 | D115: Pd1 | E115: 287 | F115: CC
A116: U5 | B116: 2 | C116: 18 | D116: Pd1 | E116: 295 | F116: CR
A117: U5 | B117: 3 | C117: 6 | D117: Pd1 | E117: 331 | F117: CR
A118: U5 | B118: 3 | C118: 12 | D118: Pd1 | E118: 287 | F118: CC
A119: U5 | B119: 3 | C119: 20 | D119: Pd1 | E119: 331 | F119: CR
A120: U5 | B120: 4 | C120: 4 | D120: Pd1 | E120: 253 | F120: CR
A121: U5 | B121: 4 | C121: 11 | D121: Pd1 | E121: 337 | F121: CC
A122: U5 | B122: 4 | C122: 17 | D122: Pd1 | E122: 253 | F122: CR
A123: U5 | B123: 5 | C123: 5 | D123: Pd1 | E123: 295 | F123: CR
A124: U5 | B124: 5 | C124: 12 | D124: Pd1 | E124: 337 | F124: CC
A125: U5 | B125: 5 | C125: 19 | D125: Pd1 | E125: 295 | F125: CR
A126: U5 | B126: 6 | C126: 6 | D126: Pd1 | E126: 331 | F126: CR
A127: U5 | B127: 6 | C127: 13 | D127: Pd1 | E127: 337 | F127: CC
A128: U5 | B128: 6 | C128: 21 | D128: Pd1 | E128: 331 | F128: CR
A129: U5 | B129: 7 | C129: 4 | D129: Pd1 | E129: 253 | F129: CR
A130: U5 | B130: 7 | C130: 12 | D130: Pd1 | E130: 379 | F130: CC
A131: U5 | B131: 7 | C131: 18 | D131: Pd1 | E131: 253 | F131: CR
A132: U5 | B132: 8 | C132: 5 | D132: Pd1 | E132: 295 | F132: CR
A133: U5 | B133: 8 | C133: 13 | D133: Pd1 | E133: 379 | F133: CC
A134: U5 | B134: 8 | C134: 20 | D134: Pd1 | E134: 295 | F134: CR
A135: U5 | B135: 9 | C135: 6 | D135: Pd1 | E135: 331 | F135: CR
A136: U5 | B136: 9 | C136: 14 | D136: Pd1 | E136: 379 | F136: CC
A137: U6 | B137: 1 | C137: 3 | D137: Pd1 | E137: 235 | F137: CR
A138: U6 | B138: 1 | C138: 9 | D138: Pd1 | E138: 262 | F138: CC
A139: U6 | B139: 1 | C139: 15 | D139: Pd1 | E139: 235 | F139: CR
A140: U6 | B140: 1 | C140: 21 | D140: Pd1 | E140: 262 | F140: CC
A141: U6 | B141: 2 | C141: 4 | D141: Pd1 | E141: 274 | F141: CR
A142: U6 | B142: 2 | C142: 10 | D142: Pd1 | E142: 262 | F142: CC
A143: U6 | B143: 2 | C143: 17 | D143: Pd1 | E143: 274 | F143: CR
A144: U6 | B144: 3 | C144: 5 | D144: Pd1 | E144: 306 | F144: CR
A145: U6 | B145: 3 | C145: 11 | D145: Pd1 | E145: 262 | F145: CC
A146: U6 | B146: 3 | C146: 19 | D146: Pd1 | E146: 306 | F146: CR
A147: U6 | B147: 4 | C147: 3 | D147: Pd1 | E147: 235 | F147: CR
A148: U6 | B148: 4 | C148: 10 | D148: Pd1 | E148: 319 | F148: CC
A149: U6 | B149: 4 | C149: 16 | D149: Pd1 | E149: 235 | F149: CR
A150: U6 | B150: 5 | C150: 4 | D150: Pd1 | E150: 274 | F150: CR
A151: U6 | B151: 5 | C151: 11 | D151: Pd1 | E151: 319 | F151: CC
A152: U6 | B152: 5 | C152: 18 | D152: Pd1 | E152: 274 | F152: CR
A153: U6 | B153: 6 | C153: 5 | D153: Pd1 | E153: 306 | F153: CR
A154: U6 | B154: 6 | C154: 12 | D154: Pd1 | E154: 319 | F154: CC
A155: U6 | B155: 6 | C155: 20 | D155: Pd1 | E155: 306 | F155: CR
A156: U6 | B156: 7 | C156: 3 | D156: Pd1 | E156: 235 | F156: CR
A157: U6 | B157: 7 | C157: 11 | D157: Pd1 | E157: 369 | F157: CC
A158: U6 | B158: 7 | C158: 17 | D158: Pd1 | E158: 235 | F158: CR
A159: U6 | B159: 8 | C159: 4 | D159: Pd1 | E159: 274 | F159: CR
A160: U6 | B160: 8 | C160: 12 | D160: Pd1 | E160: 369 | F160: CC
A161: U6 | B161: 8 | C161: 19 | D161: Pd1 | E161: 274 | F161: CR
A162: U6 | B162: 9 | C162: 5 | D162: Pd1 | E162: 306 | F162: CR
A163: U6 | B163: 9 | C163: 13 | D163: Pd1 | E163: 369 | F163: CC
A164: U6 | B164: 9 | C164: 21 | D164: Pd1 | E164: 306 | F164: CR

Sheet Problema_Modelo_Talhoes
A1: Talhao | B1: Prescrição | C1: Ano | D1: Produto | E1: Produção | F1: Intervenção
A2: U1C1 | B2: 1 | C2: 1 | D2: Pd1 | E2: 324 | F2: CR
A3: U1C1 | B3: 1 | C3: 7 | D3: Pd1 | E3: 355 | F3: CC
A4: U1C1 | B4: 1 | C4: 13 | D4: Pd1 | E4: 324 | F4: CR
A5: U1C1 | B5: 1 | C5: 19 | D5: Pd1 | E5: 355 | F5: CC
A6: U1C1 | B6: 2 | C6: 2 | D6: Pd1 | E6: 378 | F6: CR
A7: U1C1 | B7: 2 | C7: 8 | D7: Pd1 | E7: 355 | F7: CC
A8: U1C1 | B8: 2 | C8: 15 | D8: Pd1 | E8: 378 | F8: CR
A9: U1C1 | B9: 2 | C9: 21 | D9: Pd1 | E9: 355 | F9: CC
A10: U1C1 | B10: 3 | C10: 3 | D10: Pd1 | E10: 425 | F10: CR
A11: U1C1 | B11: 3 | C11: 9 | D11: Pd1 | E11: 355 | F11: CC
A12: U1C1 | B12: 3 | C12: 17 | D12: Pd1 | E12: 425 | F12: CR
A13: U1C1 | B13: 4 | C13: 1 | D13: Pd1 | E13: 324 | F13: CR
A14: U1C1 | B14: 4 | C14: 8 | D14: Pd1 | E14: 422 | F14: CC
A15: U1C1 | B15: 4 | C15: 14 | D15: Pd1 | E15: 324 | F15: CR
A16: U1C1 | B16: 4 | C16: 21 | D16: Pd1 | E16: 422 | F16: CC
A17: U1C1 | B17: 5 | C17: 2 | D17: Pd1 | E17: 378 | F17: CR
A18: U1C1 | B18: 5 | C18: 9 | D18: Pd1 | E18: 422 | F18: CC
A19: U1C1 | B19: 5 | C19: 16 | D19: Pd1 | E19: 378 | F19: CR
A20: U1C1 | B20: 6 | C20: 3 | D20: Pd1 | E20: 425 | F20: CR
A21: U1C1 | B21: 6 | C21: 10 | D21: Pd1 | E21: 422 | F21: CC
A22: U1C1 | B22: 6 | C22: 18 | D22: Pd1 | E22: 425 | F22: CR
A23: U1C1 | B23: 7 | C23: 1 | D23: Pd1 | E23: 324 | F23: CR
A24: U1C1 | B24: 7 | C24: 9 | D24: Pd1 | E24: 479 | F24: CC
A25: U1C1 | B25: 7 | C25: 15 | D25: Pd1 | E25: 324 | F25: CR
A26: U1C1 | B26: 8 | C26: 2 | D26: Pd1 | E26: 378 | F26: CR
A27: U1C1 | B27: 8 | C27: 10 | D27: Pd1 | E27: 479 | F27: CC
A28: U1C1 | B28: 8 | C28: 17 | D28: Pd1 | E28: 378 | F28: CR
A29: U1C1 | B29: 9 | C29: 3 | D29: Pd1 | E29: 425 | F29: CR
A30: U1C1 | B30: 9 | C30: 11 | D30: Pd1 | E30: 479 | F30: CC
A31: U1C1 | B31: 9 | C31: 19 | D31: Pd1 | E31: 425 | F31: CR
A32: U1C2 | B32: 1 | C32: 1 | D32: Pd1 | E32: 324 | F32: CR
A33: U1C2 | B33: 1 | C33: 7 | D33: Pd1 | E33: 355 | F33: CC
A34: U1C2 | B34: 1 | C34: 13 | D34: Pd1 | E34: 324 | F34: CR
A35: U1C2 | B35: 1 | C35: 19 | D35: Pd1 | E35: 355 | F35: CC
A36: U1C2 | B36: 2 | C36: 2 | D36: Pd1 | E36: 378 | F36: CR
A37: U1C2 | B37: 2 | C37: 8 | D37: Pd1 | E37: 355 | F37: CC
A38: U1C2 | B38: 2 | C38: 15 | D38: Pd1 | E38: 378 | F38: CR
A39: U1C2 | B39: 2 | C39: 21 | D39: Pd1 | E39: 355 | F39: CC
A40: U1C2 | B40: 3 | C40: 3 | D40: Pd1 | E40: 425 | F40: CR
A41: U1C2 | B41: 3 | C41: 9 | D41: Pd1 | E41: 355 | F41: CC
A42: U1C2 | B42: 3 | C42: 17 | D42: Pd1 | E42: 425 | F42: CR
A43: U1C2 | B43: 4 | C43: 1 | D43: Pd1 | E43: 324 | F43: CR
A44: U1C2 | B44: 4 | C44: 8 | D44: Pd1 | E44: 422 | F44: CC
A45: U1C2 | B45: 4 | C45: 14 | D45: Pd1 | E45: 324 | F45: CR
A46: U1C2 | B46: 4 | C46: 21 | D46: Pd1 | E46: 422 | F46: CC
A47: U1C2 | B47: 5 | C47: 2 | D47: Pd1 | E47: 378 | F47: CR
A48: U1C2 | B48: 5 | C48: 9 | D48: Pd1 | E48: 422 | F48: CC
A49: U1C2 | B49: 5 | C49: 16 | D49: Pd1 | E49: 378 | F49: CR
A50: U1C2 | B50: 6 | C50: 3 | D50: Pd1 | E50: 425 | F50: CR
A51: U1C2 | B51: 6 | C51: 10 | D51: Pd1 | E51: 422 | F51: CC
A52: U1C2 | B52: 6 | C52: 18 | D52: Pd1 | E52: 425 | F52: CR
A53: U1C2 | B53: 7 | C53: 1 | D53: Pd1 | E53: 324 | F53: CR
A54: U1C2 | B54: 7 | C54: 9 | D54: Pd1 | E54: 479 | F54: CC
A55: U1C2 | B55: 7 | C55: 15 | D55: Pd1 | E55: 324 | F55: CR
A56: U1C2 | B56: 8 | C56: 2 | D56: Pd1 | E56: 378 | F56: CR
A57: U1C2 | B57: 8 | C57: 10 | D57: Pd1 | E57: 479 | F57: CC
A58: U1C2 | B58: 8 | C58: 17 | D58: Pd1 | E58: 378 | F58: CR
A59: U1C2 | B59: 9 | C59: 3 | D59: Pd1 | E59: 425 | F59: CR
A60: U1C2 | B60: 9 | C60: 11 | D60: Pd1 | E60: 479 | F60: CC
A61: U1C2 | B61: 9 | C61: 19 | D61: Pd1 | E61: 425 | F61: CR
A62: U1C3 | B62: 1 | C62: 1 | D62: Pd1 | E62: 324 | F62: CR
A63: U1C3 | B63: 1 | C63: 7 | D63: Pd1 | E63: 355 | F63: CC
A64: U1C3 | B64: 1 | C64: 13 | D64: Pd1 | E64: 324 | F64: CR
A65: U1C3 | B65: 1 | C65: 19 | D65: Pd1 | E65: 355 | F65: CC
A66: U1C3 | B66: 2 | C66: 2 | D66: Pd1 | E66: 378 | F66: CR
A67: U1C3 | B67: 2 | C67: 8 | D67: Pd1 | E67: 355 | F67: CC
A68: U1C3 | B68: 2 | C68: 15 | D68: Pd1 | E68: 378 | F68: CR
A69: U1C3 | B69: 2 | C69: 21 | D69: Pd1 | E69: 355 | F69: CC
A70: U1C3 | B70: 3 | C70: 3 | D70: Pd1 | E70: 425 | F70: CR
A71: U1C3 | B71: 3 | C71: 9 | D71: Pd1 | E71: 355 | F71: CC
A72: U1C3 | B72: 3 | C72: 17 | D72: Pd1 | E72: 425 | F72: CR
A73: U1C3 | B73: 4 | C73: 1 | D73: Pd1 | E73: 324 | F73: CR
A74: U1C3 | B74: 4 | C74: 8 | D74: Pd1 | E74: 422 | F74: CC
A75: U1C3 | B75: 4 | C75: 14 | D75: Pd1 | E75: 324 | F75: CR
A76: U1C3 | B76: 4 | C76: 21 | D76: Pd1 | E76: 422 | F76: CC
A77: U1C3 | B77: 5 | C77: 2 | D77: Pd1 | E77: 378 | F77: CR
A78: U1C3 | B78: 5 | C78: 9 | D78: Pd1 | E78: 422 | F78: CC
A79: U1C3 | B79: 5 | C79: 16 | D79: Pd1 | E79: 378 | F79: CR
A80: U1C3 | B80: 6 | C80: 3 | D80: Pd1 | E80: 425 | F80: CR
A81: U1C3 | B81: 6 | C81: 10 | D81: Pd1 | E81: 422 | F81: CC
A82: U1C3 | B82: 6 | C82: 18 | D82: Pd1 | E82: 425 | F82: CR
A83: U1C3 | B83: 7 | C83: 1 | D83: Pd1 | E83: 324 | F83: CR
A84: U1C3 | B84: 7 | C84: 9 | D84: Pd1 | E84: 479 | F84: CC
A85: U1C3 | B85: 7 | C85: 15 | D85: Pd1 | E85: 324 | F85: CR
A86: U1C3 | B86: 8 | C86: 2 | D86: Pd1 | E86: 378 | F86: CR
A87: U1C3 | B87: 8 | C87: 10 | D87: Pd1 | E87: 479 | F87: CC
A88: U1C3 | B88: 8 | C88: 17 | D88: Pd1 | E88: 378 | F88: CR
A89: U1C3 | B89: 9 | C89: 3 | D89: Pd1 | E89: 425 | F89: CR
A90: U1C3 | B90: 9 | C90: 11 | D90: Pd1 | E90: 479 | F90: CC
A91: U1C3 | B91: 9 | C91: 19 | D91: Pd1 | E91: 425 | F91: CR
A92: U1C4 | B92: 1 | C92: 1 | D92: Pd1 | E92: 324 | F92: CR
A93: U1C4 | B93: 1 | C93: 7 | D93: Pd1 | E93: 355 | F93: CC
A94: U1C4 | B94: 1 | C94: 13 | D94: Pd1 | E94: 324 | F94: CR
A95: U1C4 | B95: 1 | C95: 19 | D95: Pd1 | E95: 355 | F95: CC
A96: U1C4 | B96: 2 | C96: 2 | D96: Pd1 | E96: 378 | F96: CR
A97: U1C4 | B97: 2 | C97: 8 | D97: Pd1 | E97: 355 | F97: CC
A98: U1C4 | B98: 2 | C98: 15 | D98: Pd1 | E98: 378 | F98: CR
A99: U1C4 | B99: 2 | C99: 21 | D99: Pd1 | E99: 355 | F99: CC
A100: U1C4 | B100: 3 | C100: 3 | D100: Pd1 | E100: 425 | F100: CR
A101: U1C4 | B101: 3 | C101: 9 | D101: Pd1 | E101: 355 | F101: CC
A102: U1C4 | B102: 3 | C102: 17 | D102: Pd1 | E102: 425 | F102: CR
A103: U1C4 | B103: 4 | C103: 1 | D103: Pd1 | E103: 324 | F103: CR
A104: U1C4 | B104: 4 | C104: 8 | D104: Pd1 | E104: 422 | F104: CC
A105: U1C4 | B105: 4 | C105: 14 | D105: Pd1 | E105: 324 | F105: CR
A106: U1C4 | B106: 4 | C106: 21 | D106: Pd1 | E106: 422 | F106: CC
A107: U1C4 | B107: 5 | C107: 2 | D107: Pd1 | E107: 378 | F107: CR
A108: U1C4 | B108: 5 | C108: 9 | D108: Pd1 | E108: 422 | F108: CC
A109: U1C4 | B109: 5 | C109: 16 | D109: Pd1 | E109: 378 | F109: CR
A110: U1C4 | B110: 6 | C110: 3 | D110: Pd1 | E110: 425 | F110: CR
A111: U1C4 | B111: 6 | C111: 10 | D111: Pd1 | E111: 422 | F111: CC
A112: U1C4 | B112: 6 | C112: 18 | D112: Pd1 | E112: 425 | F112: CR
A113: U1C4 | B113: 7 | C113: 1 | D113: Pd1 | E113: 324 | F113: CR
A114: U1C4 | B114: 7 | C114: 9 | D114: Pd1 | E114: 479 | F114: CC
A115: U1C4 | B115: 7 | C115: 15 | D115: Pd1 | E115: 324 | F115: CR
A116: U1C4 | B116: 8 | C116: 2 | D116: Pd1 | E116: 378 | F116: CR
A117: U1C4 | B117: 8 | C117: 10 | D117: Pd1 | E117: 479 | F117: CC
A118: U1C4 | B118: 8 | C118: 17 | D118: Pd1 | E118: 378 | F118: CR
A119: U1C4 | B119: 9 | C119: 3 | D119: Pd1 | E119: 425 | F119: CR
A120: U1C4 | B120: 9 | C120: 11 | D120: Pd1 | E120: 479 | F120: CC
A121: U1C4 | B121: 9 | C121: 19 | D121: Pd1 | E121: 425 | F121: CR
A122: U1C5 | B122: 1 | C122: 1 | D122: Pd1 | E122: 324 | F122: CR
A123: U1C5 | B123: 1 | C123: 7 | D123: Pd1 | E123: 355 | F123: CC
A124: U1C5 | B124: 1 | C124: 13 | D124: Pd1 | E124: 324 | F124: CR
A125: U1C5 | B125: 1 | C125: 19 | D125: Pd1 | E125: 355 | F125: CC
A126: U1C5 | B126: 2 | C126: 2 | D126: Pd1 | E126: 378 | F126: CR
A127: U1C5 | B127: 2 | C127: 8 | D127: Pd1 | E127: 355 | F127: CC
A128: U1C5 | B128: 2 | C128: 15 | D128: Pd1 | E128: 378 | F128: CR
A129: U1C5 | B129: 2 | C129: 21 | D129: Pd1 | E129: 355 | F129: CC
A130: U1C5 | B130: 3 | C130: 3 | D130: Pd1 | E130: 425 | F130: CR
A131: U1C5 | B131: 3 | C131: 9 | D131: Pd1 | E131: 355 | F131: CC
A132: U1C5 | B132: 3 | C132: 17 | D132: Pd1 | E132: 425 | F132: CR
A133: U1C5 | B133: 4 | C133: 1 | D133: Pd1 | E133: 324 | F133: CR
A134: U1C5 | B134: 4 | C134: 8 | D134: Pd1 | E134: 422 | F134: CC
A135: U1C5 | B135: 4 | C135: 14 | D135: Pd1 | E135: 324 | F135: CR
A136: U1C5 | B136: 4 | C136: 21 | D136: Pd1 | E136: 422 | F136: CC
A137: U1C5 | B137: 5 | C137: 2 | D137: Pd1 | E137: 378 | F137: CR
A138: U1C5 | B138: 5 | C138: 9 | D138: Pd1 | E138: 422 | F138: CC
A139: U1C5 | B139: 5 | C139: 16 | D139: Pd1 | E139: 378 | F139: CR
A140: U1C5 | B140: 6 | C140: 3 | D140: Pd1 | E140: 425 | F140: CR
A141: U1C5 | B141: 6 | C141: 10 | D141: Pd1 | E141: 422 | F141: CC
A142: U1C5 | B142: 6 | C142: 18 | D142: Pd1 | E142: 425 | F142: CR
A143: U1C5 | B143: 7 | C143: 1 | D143: Pd1 | E143: 324 | F143: CR
A144: U1C5 | B144: 7 | C144: 9 | D144: Pd1 | E144: 479 | F144: CC
A145: U1C5 | B145: 7 | C145: 15 | D145: Pd1 | E145: 324 | F145: CR
A146: U1C5 | B146: 8 | C146: 2 | D146: Pd1 | E146: 378 | F146: CR
A147: U1C5 | B147: 8 | C147: 10 | D147: Pd1 | E147: 479 | F147: CC
A148: U1C5 | B148: 8 | C148: 17 | D148: Pd1 | E148: 378 | F148: CR
A149: U1C5 | B149: 9 | C149: 3 | D149: Pd1 | E149: 425 | F149: CR
A150: U1C5 | B150: 9 | C150: 11 | D150: Pd1 | E150: 479 | F150: CC
A151: U1C5 | B151: 9 | C151: 19 | D151: Pd1 | E151: 425 | F151: CR
A152: U1C6 | B152: 1 | C152: 1 | D152: Pd1 | E152: 324 | F152: CR
A153: U1C6 | B153: 1 | C153: 7 | D153: Pd1 | E153: 355 | F153: CC
A154: U1C6 | B154: 1 | C154: 13 | D154: Pd1 | E154: 324 | F154: CR
A155: U1C6 | B155: 1 | C155: 19 | D155: Pd1 | E155: 355 | F155: CC
A156: U1C6 | B156: 2 | C156: 2 | D156: Pd1 | E156: 378 | F156: CR
A157: U1C6 | B157: 2 | C157: 8 | D157: Pd1 | E157: 355 | F157: CC
A158: U1C6 | B158: 2 | C158: 15 | D158: Pd1 | E158: 378 | F158: CR
A159: U1C6 | B159: 2 | C159: 21 | D159: Pd1 | E159: 355 | F159: CC
A160: U1C6 | B160: 3 | C160: 3 | D160: Pd1 | E160: 425 | F160: CR
A161: U1C6 | B161: 3 | C161: 9 | D161: Pd1 | E161: 355 | F161: CC
A162: U1C6 | B162: 3 | C162: 17 | D162: Pd1 | E162: 425 | F162: CR
A163: U1C6 | B163: 4 | C163: 1 | D163: Pd1 | E163: 324 | F163: CR
A164: U1C6 | B164: 4 | C164: 8 | D164: Pd1 | E164: 422 | F164: CC
A165: U1C6 | B165: 4 | C165: 14 | D165: Pd1 | E165: 324 | F165: CR
A166: U1C6 | B166: 4 | C166: 21 | D166: Pd1 | E166: 422 | F166: CC
A167: U1C6 | B167: 5 | C167: 2 | D167: Pd1 | E167: 378 | F167: CR
A168: U1C6 | B168: 5 | C168: 9 | D168: Pd1 | E168: 422 | F168: CC
A169: U1C6 | B169: 5 | C169: 16 | D169: Pd1 | E169: 378 | F169: CR
A170: U1C6 | B170: 6 | C170: 3 | D170: Pd1 | E170: 425 | F170: CR
A171: U1C6 | B171: 6 | C171: 10 | D171: Pd1 | E171: 422 | F171: CC
A172: U1C6 | B172: 6 | C172: 18 | D172: Pd1 | E172: 425 | F172: CR
A173: U1C6 | B173: 7 | C173: 1 | D173: Pd1 | E173: 324 | F173: CR
A174: U1C6 | B174: 7 | C174: 9 | D174: Pd1 | E174: 479 | F174: CC
A175: U1C6 | B175: 7 | C175: 15 | D175: Pd1 | E175: 324 | F175: CR
A176: U1C6 | B176: 8 | C176: 2 | D176: Pd1 | E176: 378 | F176: CR
A177: U1C6 | B177: 8 | C177: 10 | D177: Pd1 | E177: 479 | F177: CC
A178: U1C6 | B178: 8 | C178: 17 | D178: Pd1 | E178: 378 | F178: CR
A179: U1C6 | B179: 9 | C179: 3 | D179: Pd1 | E179: 425 | F179: CR
A180: U1C6 | B180: 9 | C180: 11 | D180: Pd1 | E180: 479 | F180: CC
A181: U1C6 | B181: 9 | C181: 19 | D181: Pd1 | E181: 425 | F181: CR
A182: U1C7 | B182: 1 | C182: 1 | D182: Pd1 | E182: 324 | F182: CR
A183: U1C7 | B183: 1 | C183: 7 | D183: Pd1 | E183: 355 | F183: CC
A184: U1C7 | B184: 1 | C184: 13 | D184: Pd1 | E184: 324 | F184: CR
A185: U1C7 | B185: 1 | C185: 19 | D185: Pd1 | E185: 355 | F185: CC
A186: U1C7 | B186: 2 | C186: 2 | D186: Pd1 | E186: 378 | F186: CR
A187: U1C7 | B187: 2 | C187: 8 | D187: Pd1 | E187: 355 | F187: CC
A188: U1C7 | B188: 2 | C188: 15 | D188: Pd1 | E188: 378 | F188: CR
A189: U1C7 | B189: 2 | C189: 21 | D189: Pd1 | E189: 355 | F189: CC
A190: U1C7 | B190: 3 | C190: 3 | D190: Pd1 | E190: 425 | F190: CR
A191: U1C7 | B191: 3 | C191: 9 | D191: Pd1 | E191: 355 | F191: CC
A192: U1C7 | B192: 3 | C192: 17 | D192: Pd1 | E192: 425 | F192: CR
A193: U1C7 | B193: 4 | C193: 1 | D193: Pd1 | E193: 324 | F193: CR
A194: U1C7 | B194: 4 | C194: 8 | D194: Pd1 | E194: 422 | F194: CC
A195: U1C7 | B195: 4 | C195: 14 | D195: Pd1 | E195: 324 | F195: CR
A196: U1C7 | B196: 4 | C196: 21 | D196: Pd1 | E196: 422 | F196: CC
A197: U1C7 | B197: 5 | C197: 2 | D197: Pd1 | E197: 378 | F197: CR
A198: U1C7 | B198: 5 | C198: 9 | D198: Pd1 | E198: 422 | F198: CC
A199: U1C7 | B199: 5 | C199: 16 | D199: Pd1 | E199: 378 | F199: CR
A200: U1C7 | B200: 6 | C200: 3 | D200: Pd1 | E200: 425 | F200: CR
... 684 more rows

Sheet Problema_Portugal
A1: UMF | B1: Prescrição | C1: Ano | D1: Produto | E1: Produção | F1: Intervenção
A2: UMF1 | B2: 1 | C2: 1 | D2: Pd1 | E2: 142 | F2: CR
A3: UMF1 | B3: 1 | C3: 5 | D3: Pd1 | E3: 142 | F3: CR
A4: UMF1 | B4: 1 | C4: 9 | D4: Pd1 | E4: 142 | F4: CR
A5: UMF1 | B5: 2 | C5: 1 | D5: Pd1 | E5: 142 | F5: CR
A6: UMF1 | B6: 2 | C6: 6 | D6: Pd1 | E6: 196 | F6: CR
A7: UMF1 | B7: 3 | C7: 1 | D7: Pd1 | E7: 142 | F7: CR
A8: UMF1 | B8: 3 | C8: 7 | D8: Pd1 | E8: 249 | F8: CR
A9: UMF1 | B9: 4 | C9: 1 | D9: Pd1 | E9: 142 | F9: CR
A10: UMF1 | B10: 4 | C10: 8 | D10: Pd1 | E10: 299 | F10: CR
A11: UMF1 | B11: 5 | C11: 2 | D11: Pd1 | E11: 196 | F11: CR
A12: UMF1 | B12: 5 | C12: 6 | D12: Pd1 | E12: 142 | F12: CR
A13: UMF1 | B13: 5 | C13: 10 | D13: Pd1 | E13: 142 | F13: CR
A14: UMF1 | B14: 6 | C14: 2 | D14: Pd1 | E14: 196 | F14: CR
A15: UMF1 | B15: 6 | C15: 7 | D15: Pd1 | E15: 196 | F15: CR
A16: UMF1 | B16: 7 | C16: 2 | D16: Pd1 | E16: 196 | F16: CR
A17: UMF1 | B17: 7 | C17: 8 | D17: Pd1 | E17: 249 | F17: CR
A18: UMF1 | B18: 8 | C18: 2 | D18: Pd1 | E18: 196 | F18: CR
A19: UMF1 | B19: 8 | C19: 9 | D19: Pd1 | E19: 299 | F19: CR
A20: UMF1 | B20: 9 | C20: 3 | D20: Pd1 | E20: 249 | F20: CR
A21: UMF1 | B21: 9 | C21: 7 | D21: Pd1 | E21: 142 | F21: CR
A22: UMF1 | B22: 10 | C22: 3 | D22: Pd1 | E22: 249 | F22: CR
A23: UMF1 | B23: 10 | C23: 8 | D23: Pd1 | E23: 196 | F23: CR
A24: UMF1 | B24: 11 | C24: 3 | D24: Pd1 | E24: 249 | F24: CR
A25: UMF1 | B25: 11 | C25: 9 | D25: Pd1 | E25: 249 | F25: CR
A26: UMF1 | B26: 12 | C26: 3 | D26: Pd1 | E26: 249 | F26: CR
A27: UMF1 | B27: 12 | C27: 10 | D27: Pd1 | E27: 299 | F27: CR
A28: UMF1 | B28: 13 | C28: 4 | D28: Pd1 | E28: 299 | F28: CR
A29: UMF1 | B29: 13 | C29: 8 | D29: Pd1 | E29: 142 | F29: CR
A30: UMF1 | B30: 14 | C30: 4 | D30: Pd1 | E30: 299 | F30: CR
A31: UMF1 | B31: 14 | C31: 9 | D31: Pd1 | E31: 196 | F31: CR
A32: UMF1 | B32: 15 | C32: 4 | D32: Pd1 | E32: 299 | F32: CR
A33: UMF1 | B33: 15 | C33: 10 | D33: Pd1 | E33: 249 | F33: CR
A34: UMF1 | B34: 16 | C34: 4 | D34: Pd1 | E34: 299 | F34: CR
A35: UMF2 | B35: 1 | C35: 2 | D35: Pd1 | E35: 161 | F35: CR
A36: UMF2 | B36: 1 | C36: 6 | D36: Pd1 | E36: 161 | F36: CR
A37: UMF2 | B37: 1 | C37: 10 | D37: Pd1 | E37: 161 | F37: CR
A38: UMF2 | B38: 2 | C38: 2 | D38: Pd1 | E38: 161 | F38: CR
A39: UMF2 | B39: 2 | C39: 7 | D39: Pd1 | E39: 197 | F39: CR
A40: UMF2 | B40: 3 | C40: 2 | D40: Pd1 | E40: 161 | F40: CR
A41: UMF2 | B41: 3 | C41: 8 | D41: Pd1 | E41: 227 | F41: CR
A42: UMF2 | B42: 4 | C42: 2 | D42: Pd1 | E42: 161 | F42: CR
A43: UMF2 | B43: 4 | C43: 9 | D43: Pd1 | E43: 254 | F43: CR
A44: UMF2 | B44: 5 | C44: 3 | D44: Pd1 | E44: 197 | F44: CR
A45: UMF2 | B45: 5 | C45: 7 | D45: Pd1 | E45: 161 | F45: CR
A46: UMF2 | B46: 6 | C46: 3 | D46: Pd1 | E46: 197 | F46: CR
A47: UMF2 | B47: 6 | C47: 8 | D47: Pd1 | E47: 197 | F47: CR
A48: UMF2 | B48: 7 | C48: 3 | D48: Pd1 | E48: 197 | F48: CR
A49: UMF2 | B49: 7 | C49: 9 | D49: Pd1 | E49: 227 | F49: CR
A50: UMF2 | B50: 8 | C50: 3 | D50: Pd1 | E50: 197 | F50: CR
A51: UMF2 | B51: 8 | C51: 10 | D51: Pd1 | E51: 254 | F51: CR
A52: UMF2 | B52: 9 | C52: 4 | D52: Pd1 | E52: 227 | F52: CR
A53: UMF2 | B53: 9 | C53: 8 | D53: Pd1 | E53: 161 | F53: CR
A54: UMF2 | B54: 10 | C54: 4 | D54: Pd1 | E54: 227 | F54: CR
A55: UMF2 | B55: 10 | C55: 9 | D55: Pd1 | E55: 197 | F55: CR
A56: UMF2 | B56: 11 | C56: 4 | D56: Pd1 | E56: 227 | F56: CR
A57: UMF2 | B57: 11 | C57: 10 | D57: Pd1 | E57: 227 | F57: CR
A58: UMF2 | B58: 12 | C58: 4 | D58: Pd1 | E58: 227 | F58: CR
A59: UMF2 | B59: 13 | C59: 5 | D59: Pd1 | E59: 254 | F59: CR
A60: UMF2 | B60: 13 | C60: 9 | D60: Pd1 | E60: 161 | F60: CR
A61: UMF2 | B61: 14 | C61: 5 | D61: Pd1 | E61: 254 | F61: CR
A62: UMF2 | B62: 14 | C62: 10 | D62: Pd1 | E62: 197 | F62: CR
A63: UMF2 | B63: 15 | C63: 5 | D63: Pd1 | E63: 254 | F63: CR
A64: UMF3 | B64: 1 | C64: 3 | D64: Pd1 | E64: 135 | F64: CR
A65: UMF3 | B65: 1 | C65: 7 | D65: Pd1 | E65: 135 | F65: CR
A66: UMF3 | B66: 2 | C66: 3 | D66: Pd1 | E66: 135 | F66: CR
A67: UMF3 | B67: 2 | C67: 8 | D67: Pd1 | E67: 170 | F67: CR
A68: UMF3 | B68: 3 | C68: 3 | D68: Pd1 | E68: 135 | F68: CR
A69: UMF3 | B69: 3 | C69: 9 | D69: Pd1 | E69: 201 | F69: CR
A70: UMF3 | B70: 4 | C70: 3 | D70: Pd1 | E70: 135 | F70: CR
A71: UMF3 | B71: 4 | C71: 10 | D71: Pd1 | E71: 229 | F71: CR
A72: UMF3 | B72: 5 | C72: 4 | D72: Pd1 | E72: 170 | F72: CR
A73: UMF3 | B73: 5 | C73: 8 | D73: Pd1 | E73: 135 | F73: CR
A74: UMF3 | B74: 6 | C74: 4 | D74: Pd1 | E74: 170 | F74: CR
A75: UMF3 | B75: 6 | C75: 9 | D75: Pd1 | E75: 170 | F75: CR
A76: UMF3 | B76: 7 | C76: 4 | D76: Pd1 | E76: 170 | F76: CR
A77: UMF3 | B77: 7 | C77: 10 | D77: Pd1 | E77: 201 | F77: CR
A78: UMF3 | B78: 8 | C78: 4 | D78: Pd1 | E78: 170 | F78: CR
A79: UMF3 | B79: 9 | C79: 5 | D79: Pd1 | E79: 201 | F79: CR
A80: UMF3 | B80: 9 | C80: 9 | D80: Pd1 | E80: 135 | F80: CR
A81: UMF3 | B81: 10 | C81: 5 | D81: Pd1 | E81: 201 | F81: CR
A82: UMF3 | B82: 10 | C82: 10 | D82: Pd1 | E82: 170 | F82: CR
A83: UMF3 | B83: 11 | C83: 5 | D83: Pd1 | E83: 201 | F83: CR
A84: UMF3 | B84: 12 | C84: 6 | D84: Pd1 | E84: 229 | F84: CR
A85: UMF3 | B85: 12 | C85: 10 | D85: Pd1 | E85: 135 | F85: CR
A86: UMF3 | B86: 13 | C86: 6 | D86: Pd1 | E86: 229 | F86: CR

Sheet Problema_Uruguay
A1: Estrato | B1: Prescrição | C1: Ano | D1: Produto | E1: Produção | F1: Intervenção
A2: R88 | B2: 1 | C2: 1 | D2: Pd1 | E2: 100 | F2: TR
A3: R88 | B3: 1 | C3: 1 | D3: Pd2 | E3: 90 | F3: TR
A4: R88 | B4: 1 | C4: 1 | D4: Pd3 | E4: 150 | F4: TR
A5: R88 | B5: 1 | C5: 1 | D5: Pd4 | E5: 60 | F5: TR
A6: R88 | B6: 1 | C6: 3 | D6: N | E6: 0 | F6: RP
A7: R88 | B7: 1 | C7: 6 | D7: Pd1 | E7: 9.36 | F7: R300
A8: R88 | B8: 1 | C8: 9 | D8: Pd1 | E8: 25.12 | F8: R150
A9: R88 | B9: 1 | C9: 9 | D9: Pd2 | E9: 35.325 | F9: R150
A10: R88 | B10: 1 | C10: 9 | D10: Pd3 | E10: 12.56 | F10: R150
A11: R88 | B11: 1 | C11: 16 | D11: Pd1 | E11: 21.6 | F11: TR
A12: R88 | B12: 1 | C12: 16 | D12: Pd2 | E12: 21.6 | F12: TR
A13: R88 | B13: 1 | C13: 16 | D13: Pd3 | E13: 30.24 | F13: TR
A14: R88 | B14: 1 | C14: 16 | D14: Pd4 | E14: 358.56 | F14: TR
A15: R88 | B15: 1 | C15: 16 | D15: N | E15: 0 | F15: PL
A16: R88 | B16: 1 | C16: 18 | D16: N | E16: 0 | F16: RP
A17: R88 | B17: 1 | C17: 22 | D17: Pd1 | E17: 18.6 | F17: R300
A18: R88 | B18: 1 | C18: 25 | D18: Pd1 | E18: 31.2 | F18: R150
A19: R88 | B19: 1 | C19: 25 | D19: Pd2 | E19: 35.2 | F19: R150
A20: R88 | B20: 1 | C20: 25 | D20: Pd3 | E20: 9.6 | F20: R150
A21: R88 | B21: 1 | C21: 31 | D21: Pd1 | E21: 27.96 | F21: TR
A22: R88 | B22: 1 | C22: 31 | D22: Pd2 | E22: 27.96 | F22: TR
A23: R88 | B23: 1 | C23: 31 | D23: Pd3 | E23: 46.6 | F23: TR
A24: R88 | B24: 1 | C24: 31 | D24: Pd4 | E24: 358.82 | F24: TR
A25: R88 | B25: 2 | C25: 1 | D25: Pd1 | E25: 100 | F25: TR
A26: R88 | B26: 2 | C26: 1 | D26: Pd2 | E26: 90 | F26: TR
A27: R88 | B27: 2 | C27: 1 | D27: Pd3 | E27: 150 | F27: TR
A28: R88 | B28: 2 | C28: 1 | D28: Pd4 | E28: 60 | F28: TR
A29: R88 | B29: 2 | C29: 3 | D29: N | E29: 0 | F29: RP
A30: R88 | B30: 2 | C30: 6 | D30: Pd1 | E30: 9.36 | F30: R300
A31: R88 | B31: 2 | C31: 9 | D31: Pd1 | E31: 25.12 | F31: R150
A32: R88 | B32: 2 | C32: 9 | D32: Pd2 | E32: 35.325 | F32: R150
A33: R88 | B33: 2 | C33: 9 | D33: Pd3 | E33: 12.56 | F33: R150
A34: R88 | B34: 2 | C34: 17 | D34: Pd1 | E34: 23.25 | F34: TR
A35: R88 | B35: 2 | C35: 17 | D35: Pd2 | E35: 23.25 | F35: TR
A36: R88 | B36: 2 | C36: 17 | D36: Pd3 | E36: 32.55 | F36: TR
A37: R88 | B37: 2 | C37: 17 | D37: Pd4 | E37: 385.95 | F37: TR
A38: R88 | B38: 2 | C38: 17 | D38: N | E38: 0 | F38: PL
A39: R88 | B39: 2 | C39: 19 | D39: N | E39: 0 | F39: RP
A40: R88 | B40: 2 | C40: 23 | D40: Pd1 | E40: 18.6 | F40: R300
A41: R88 | B41: 2 | C41: 26 | D41: Pd1 | E41: 31.2 | F41: R150
A42: R88 | B42: 2 | C42: 26 | D42: Pd2 | E42: 35.2 | F42: R150
A43: R88 | B43: 2 | C43: 26 | D43: Pd3 | E43: 9.6 | F43: R150
A44: R88 | B44: 2 | C44: 32 | D44: Pd1 | E44: 27.96 | F44: TR
A45: R88 | B45: 2 | C45: 32 | D45: Pd2 | E45: 27.96 | F45: TR
A46: R88 | B46: 2 | C46: 32 | D46: Pd3 | E46: 46.6 | F46: TR
A47: R88 | B47: 2 | C47: 32 | D47: Pd4 | E47: 358.82 | F47: TR
A48: R88 | B48: 3 | C48: 1 | D48: Pd1 | E48: 100 | F48: TR
A49: R88 | B49: 3 | C49: 1 | D49: Pd2 | E49: 90 | F49: TR
A50: R88 | B50: 3 | C50: 1 | D50: Pd3 | E50: 150 | F50: TR
A51: R88 | B51: 3 | C51: 1 | D51: Pd4 | E51: 60 | F51: TR
A52: R88 | B52: 3 | C52: 3 | D52: N | E52: 0 | F52: RP
A53: R88 | B53: 3 | C53: 6 | D53: Pd1 | E53: 9.36 | F53: R300
A54: R88 | B54: 3 | C54: 9 | D54: Pd1 | E54: 25.12 | F54: R150
A55: R88 | B55: 3 | C55: 9 | D55: Pd2 | E55: 35.325 | F55: R150
A56: R88 | B56: 3 | C56: 9 | D56: Pd3 | E56: 12.56 | F56: R150
A57: R88 | B57: 3 | C57: 18 | D57: Pd1 | E57: 24.8 | F57: TR
A58: R88 | B58: 3 | C58: 18 | D58: Pd2 | E58: 24.8 | F58: TR
A59: R88 | B59: 3 | C59: 18 | D59: Pd3 | E59: 34.72 | F59: TR
A60: R88 | B60: 3 | C60: 18 | D60: Pd4 | E60: 411.68 | F60: TR
A61: R88 | B61: 3 | C61: 18 | D61: N | E61: 0 | F61: PL
A62: R88 | B62: 3 | C62: 20 | D62: N | E62: 0 | F62: RP
A63: R88 | B63: 3 | C63: 24 | D63: Pd1 | E63: 18.6 | F63: R300
A64: R88 | B64: 3 | C64: 27 | D64: Pd1 | E64: 31.2 | F64: R150
A65: R88 | B65: 3 | C65: 27 | D65: Pd2 | E65: 35.2 | F65: R150
A66: R88 | B66: 3 | C66: 27 | D66: Pd3 | E66: 9.6 | F66: R150
A67: R88 | B67: 3 | C67: 33 | D67: Pd1 | E67: 27.96 | F67: TR
A68: R88 | B68: 3 | C68: 33 | D68: Pd2 | E68: 27.96 | F68: TR
A69: R88 | B69: 3 | C69: 33 | D69: Pd3 | E69: 46.6 | F69: TR
A70: R88 | B70: 3 | C70: 33 | D70: Pd4 | E70: 358.82 | F70: TR
A71: R88 | B71: 4 | C71: 1 | D71: Pd1 | E71: 100 | F71: TR
A72: R88 | B72: 4 | C72: 1 | D72: Pd2 | E72: 90 | F72: TR
A73: R88 | B73: 4 | C73: 1 | D73: Pd3 | E73: 150 | F73: TR
A74: R88 | B74: 4 | C74: 1 | D74: Pd4 | E74: 60 | F74: TR
A75: R88 | B75: 4 | C75: 3 | D75: N | E75: 0 | F75: RP
A76: R88 | B76: 4 | C76: 6 | D76: Pd1 | E76: 9.36 | F76: R300
A77: R88 | B77: 4 | C77: 10 | D77: Pd1 | E77: 26.97 | F77: R150
A78: R88 | B78: 4 | C78: 10 | D78: Pd2 | E78: 35.34 | F78: R150
A79: R88 | B79: 4 | C79: 10 | D79: Pd3 | E79: 26.97 | F79: R150
A80: R88 | B80: 4 | C80: 16 | D80: Pd1 | E80: 21 | F80: TR
A81: R88 | B81: 4 | C81: 16 | D81: Pd2 | E81: 21 | F81: TR
A82: R88 | B82: 4 | C82: 16 | D82: Pd3 | E82: 33.6 | F82: TR
A83: R88 | B83: 4 | C83: 16 | D83: Pd4 | E83: 344.4 | F83: TR
A84: R88 | B84: 4 | C84: 16 | D84: N | E84: 0 | F84: PL
A85: R88 | B85: 4 | C85: 18 | D85: N | E85: 0 | F85: RP
A86: R88 | B86: 4 | C86: 22 | D86: Pd1 | E86: 18.6 | F86: R300
A87: R88 | B87: 4 | C87: 25 | D87: Pd1 | E87: 31.2 | F87: R150
A88: R88 | B88: 4 | C88: 25 | D88: Pd2 | E88: 35.2 | F88: R150
A89: R88 | B89: 4 | C89: 25 | D89: Pd3 | E89: 9.6 | F89: R150
A90: R88 | B90: 4 | C90: 31 | D90: Pd1 | E90: 27.96 | F90: TR
A91: R88 | B91: 4 | C91: 31 | D91: Pd2 | E91: 27.96 | F91: TR
A92: R88 | B92: 4 | C92: 31 | D92: Pd3 | E92: 46.6 | F92: TR
A93: R88 | B93: 4 | C93: 31 | D93: Pd4 | E93: 358.82 | F93: TR
A94: R88 | B94: 5 | C94: 1 | D94: Pd1 | E94: 100 | F94: TR
A95: R88 | B95: 5 | C95: 1 | D95: Pd2 | E95: 90 | F95: TR
A96: R88 | B96: 5 | C96: 1 | D96: Pd3 | E96: 150 | F96: TR
A97: R88 | B97: 5 | C97: 1 | D97: Pd4 | E97: 60 | F97: TR
A98: R88 | B98: 5 | C98: 3 | D98: N | E98: 0 | F98: RP
A99: R88 | B99: 5 | C99: 6 | D99: Pd1 | E99: 9.36 | F99: R300
A100: R88 | B100: 5 | C100: 10 | D100: Pd1 | E100: 26.97 | F100: R150
A101: R88 | B101: 5 | C101: 10 | D101: Pd2 | E101: 35.34 | F101: R150
A102: R88 | B102: 5 | C102: 10 | D102: Pd3 | E102: 26.97 | F102: R150
A103: R88 | B103: 5 | C103: 17 | D103: Pd1 | E103: 22.75 | F103: TR
A104: R88 | B104: 5 | C104: 17 | D104: Pd2 | E104: 22.75 | F104: TR
A105: R88 | B105: 5 | C105: 17 | D105: Pd3 | E105: 36.4 | F105: TR
A106: R88 | B106: 5 | C106: 17 | D106: Pd4 | E106: 373.1 | F106: TR
A107: R88 | B107: 5 | C107: 17 | D107: N | E107: 0 | F107: PL
A108: R88 | B108: 5 | C108: 19 | D108: N | E108: 0 | F108: RP
A109: R88 | B109: 5 | C109: 23 | D109: Pd1 | E109: 18.6 | F109: R300
A110: R88 | B110: 5 | C110: 26 | D110: Pd1 | E110: 31.2 | F110: R150
A111: R88 | B111: 5 | C111: 26 | D111: Pd2 | E111: 35.2 | F111: R150
A112: R88 | B112: 5 | C112: 26 | D112: Pd3 | E112: 9.6 | F112: R150
A113: R88 | B113: 5 | C113: 32 | D113: Pd1 | E113: 27.96 | F113: TR
A114: R88 | B114: 5 | C114: 32 | D114: Pd2 | E114: 27.96 | F114: TR
A115: R88 | B115: 5 | C115: 32 | D115: Pd3 | E115: 46.6 | F115: TR
A116: R88 | B116: 5 | C116: 32 | D116: Pd4 | E116: 358.82 | F116: TR
A117: R88 | B117: 6 | C117: 1 | D117: Pd1 | E117: 100 | F117: TR
A118: R88 | B118: 6 | C118: 1 | D118: Pd2 | E118: 90 | F118: TR
A119: R88 | B119: 6 | C119: 1 | D119: Pd3 | E119: 150 | F119: TR
A120: R88 | B120: 6 | C120: 1 | D120: Pd4 | E120: 60 | F120: TR
A121: R88 | B121: 6 | C121: 3 | D121: N | E121: 0 | F121: RP
A122: R88 | B122: 6 | C122: 6 | D122: Pd1 | E122: 9.36 | F122: R300
A123: R88 | B123: 6 | C123: 10 | D123: Pd1 | E123: 26.97 | F123: R150
A124: R88 | B124: 6 | C124: 10 | D124: Pd2 | E124: 35.34 | F124: R150
A125: R88 | B125: 6 | C125: 10 | D125: Pd3 | E125: 26.97 | F125: R150
A126: R88 | B126: 6 | C126: 18 | D126: Pd1 | E126: 24.25 | F126: TR
A127: R88 | B127: 6 | C127: 18 | D127: Pd2 | E127: 24.25 | F127: TR
A128: R88 | B128: 6 | C128: 18 | D128: Pd3 | E128: 38.8 | F128: TR
A129: R88 | B129: 6 | C129: 18 | D129: Pd4 | E129: 397.7 | F129: TR
A130: R88 | B130: 6 | C130: 18 | D130: N | E130: 0 | F130: PL
A131: R88 | B131: 6 | C131: 20 | D131: N | E131: 0 | F131: RP
A132: R88 | B132: 6 | C132: 24 | D132: Pd1 | E132: 18.6 | F132: R300
A133: R88 | B133: 6 | C133: 27 | D133: Pd1 | E133: 31.2 | F133: R150
A134: R88 | B134: 6 | C134: 27 | D134: Pd2 | E134: 35.2 | F134: R150
A135: R88 | B135: 6 | C135: 27 | D135: Pd3 | E135: 9.6 | F135: R150
A136: R88 | B136: 6 | C136: 33 | D136: Pd1 | E136: 27.96 | F136: TR
A137: R88 | B137: 6 | C137: 33 | D137: Pd2 | E137: 27.96 | F137: TR
A138: R88 | B138: 6 | C138: 33 | D138: Pd3 | E138: 46.6 | F138: TR
A139: R88 | B139: 6 | C139: 33 | D139: Pd4 | E139: 358.82 | F139: TR
A140: R88 | B140: 7 | C140: 1 | D140: Pd1 | E140: 100 | F140: TR
A141: R88 | B141: 7 | C141: 1 | D141: Pd2 | E141: 90 | F141: TR
A142: R88 | B142: 7 | C142: 1 | D142: Pd3 | E142: 150 | F142: TR
A143: R88 | B143: 7 | C143: 1 | D143: Pd4 | E143: 60 | F143: TR
A144: R88 | B144: 7 | C144: 3 | D144: N | E144: 0 | F144: RP
A145: R88 | B145: 7 | C145: 7 | D145: Pd1 | E145: 18.6 | F145: R300
A146: R88 | B146: 7 | C146: 10 | D146: Pd1 | E146: 31.2 | F146: R150
A147: R88 | B147: 7 | C147: 10 | D147: Pd2 | E147: 35.2 | F147: R150
A148: R88 | B148: 7 | C148: 10 | D148: Pd3 | E148: 9.6 | F148: R150
A149: R88 | B149: 7 | C149: 16 | D149: Pd1 | E149: 27.96 | F149: TR
A150: R88 | B150: 7 | C150: 16 | D150: Pd2 | E150: 27.96 | F150: TR
A151: R88 | B151: 7 | C151: 16 | D151: Pd3 | E151: 46.6 | F151: TR
A152: R88 | B152: 7 | C152: 16 | D152: Pd4 | E152: 358.82 | F152: TR
A153: R88 | B153: 7 | C153: 16 | D153: N | E153: 0 | F153: PL
A154: R88 | B154: 7 | C154: 18 | D154: N | E154: 0 | F154: RP
A155: R88 | B155: 7 | C155: 22 | D155: Pd1 | E155: 18.6 | F155: R300
A156: R88 | B156: 7 | C156: 25 | D156: Pd1 | E156: 31.2 | F156: R150
A157: R88 | B157: 7 | C157: 25 | D157: Pd2 | E157: 35.2 | F157: R150
A158: R88 | B158: 7 | C158: 25 | D158: Pd3 | E158: 9.6 | F158: R150
A159: R88 | B159: 7 | C159: 31 | D159: Pd1 | E159: 27.96 | F159: TR
A160: R88 | B160: 7 | C160: 31 | D160: Pd2 | E160: 27.96 | F160: TR
A161: R88 | B161: 7 | C161: 31 | D161: Pd3 | E161: 46.6 | F161: TR
A162: R88 | B162: 7 | C162: 31 | D162: Pd4 | E162: 358.82 | F162: TR
A163: R88 | B163: 8 | C163: 1 | D163: Pd1 | E163: 100 | F163: TR
A164: R88 | B164: 8 | C164: 1 | D164: Pd2 | E164: 90 | F164: TR
A165: R88 | B165: 8 | C165: 1 | D165: Pd3 | E165: 150 | F165: TR
A166: R88 | B166: 8 | C166: 1 | D166: Pd4 | E166: 60 | F166: TR
A167: R88 | B167: 8 | C167: 3 | D167: N | E167: 0 | F167: RP
A168: R88 | B168: 8 | C168: 7 | D168: Pd1 | E168: 18.6 | F168: R300
A169: R88 | B169: 8 | C169: 10 | D169: Pd1 | E169: 31.2 | F169: R150
A170: R88 | B170: 8 | C170: 10 | D170: Pd2 | E170: 35.2 | F170: R150
A171: R88 | B171: 8 | C171: 10 | D171: Pd3 | E171: 9.6 | F171: R150
A172: R88 | B172: 8 | C172: 17 | D172: Pd1 | E172: 29.94 | F172: TR
A173: R88 | B173: 8 | C173: 17 | D173: Pd2 | E173: 29.94 | F173: TR
A174: R88 | B174: 8 | C174: 17 | D174: Pd3 | E174: 49.9 | F174: TR
A175: R88 | B175: 8 | C175: 17 | D175: Pd4 | E175: 384.23 | F175: TR
A176: R88 | B176: 8 | C176: 17 | D176: N | E176: 0 | F176: PL
A177: R88 | B177: 8 | C177: 19 | D177: N | E177: 0 | F177: RP
A178: R88 | B178: 8 | C178: 23 | D178: Pd1 | E178: 18.6 | F178: R300
A179: R88 | B179: 8 | C179: 26 | D179: Pd1 | E179: 31.2 | F179: R150
A180: R88 | B180: 8 | C180: 26 | D180: Pd2 | E180: 35.2 | F180: R150
A181: R88 | B181: 8 | C181: 26 | D181: Pd3 | E181: 9.6 | F181: R150
A182: R88 | B182: 8 | C182: 32 | D182: Pd1 | E182: 27.96 | F182: TR
A183: R88 | B183: 8 | C183: 32 | D183: Pd2 | E183: 27.96 | F183: TR
A184: R88 | B184: 8 | C184: 32 | D184: Pd3 | E184: 46.6 | F184: TR
A185: R88 | B185: 8 | C185: 32 | D185: Pd4 | E185: 358.82 | F185: TR
A186: R88 | B186: 9 | C186: 1 | D186: Pd1 | E186: 100 | F186: TR
A187: R88 | B187: 9 | C187: 1 | D187: Pd2 | E187: 90 | F187: TR
A188: R88 | B188: 9 | C188: 1 | D188: Pd3 | E188: 150 | F188: TR
A189: R88 | B189: 9 | C189: 1 | D189: Pd4 | E189: 60 | F189: TR
A190: R88 | B190: 9 | C190: 3 | D190: N | E190: 0 | F190: RP
A191: R88 | B191: 9 | C191: 7 | D191: Pd1 | E191: 18.6 | F191: R300
A192: R88 | B192: 9 | C192: 10 | D192: Pd1 | E192: 31.2 | F192: R150
A193: R88 | B193: 9 | C193: 10 | D193: Pd2 | E193: 35.2 | F193: R150
A194: R88 | B194: 9 | C194: 10 | D194: Pd3 | E194: 9.6 | F194: R150
A195: R88 | B195: 9 | C195: 18 | D195: Pd1 | E195: 31.86 | F195: TR
A196: R88 | B196: 9 | C196: 18 | D196: Pd2 | E196: 31.86 | F196: TR
A197: R88 | B197: 9 | C197: 18 | D197: Pd3 | E197: 53.1 | F197: TR
A198: R88 | B198: 9 | C198: 18 | D198: Pd4 | E198: 408.87 | F198: TR
A199: R88 | B199: 9 | C199: 18 | D199: N | E199: 0 | F199: PL
A200: R88 | B200: 9 | C200: 20 | D200: N | E200: 0 | F200: RP
... 1391 more rows

Sheet Prob_Mod_Un_Estoque_Area
A1: Estrato | B1: Prescrição | C1: Ano | D1: Produto | E1: Produção | F1: Intervenção
A2: U1C1 | B2: 6 | C2: 1 | D2: Pd1 | E2: 324 | F2: CR
A3: U1C1 | B3: 6 | C3: 7 | D3: Pd1 | E3: 355 | F3: CR
A4: U1C1 | B4: 6 | C4: 13 | D4: Pd1 | E4: 355 | F4: CR
A5: U1C1 | B5: 6 | C5: 19 | D5: Pd1 | E5: 355 | F5: CR
A6: U1C1 | B6: 6 | C6: 1 | D6: Custo de Reforma | E6: 1200 | F6: N
A7: U1C1 | B7: 6 | C7: 7 | D7: Custo de Reforma | E7: 1200 | F7: N
A8: U1C1 | B8: 6 | C8: 13 | D8: Custo de Reforma | E8: 1200 | F8: N
A9: U1C1 | B9: 6 | C9: 19 | D9: VET | E9: 6088.7 | F9: N
A10: U1C1 | B10: 6 | C10: 21 | D10: CLAS | E10: 1 | F10: CI2
A11: U1C1 | B11: 6 | C11: 21 | D11: STOCK | E11: 52.43 | F11: ST1
A12: U1C1 | B12: 7 | C12: 2 | D12: Pd1 | E12: 378 | F12: CR
A13: U1C1 | B13: 7 | C13: 9 | D13: Pd1 | E13: 422 | F13: CR
A14: U1C1 | B14: 7 | C14: 16 | D14: Pd1 | E14: 422 | F14: CR
A15: U1C1 | B15: 7 | C15: 2 | D15: Custo de Reforma | E15: 1200 | F15: N
A16: U1C1 | B16: 7 | C16: 9 | D16: Custo de Reforma | E16: 1200 | F16: N
A17: U1C1 | B17: 7 | C17: 16 | D17: VET | E17: 6088.7 | F17: N
A18: U1C1 | B18: 7 | C18: 21 | D18: CLAS | E18: 1 | F18: CI5
A19: U1C1 | B19: 7 | C19: 21 | D19: STOCK | E19: 279.19 | F19: ST1
A20: U1C1 | B20: 8 | C20: 3 | D20: Pd1 | E20: 425 | F20: CR
A21: U1C1 | B21: 8 | C21: 11 | D21: Pd1 | E21: 479 | F21: CR
A22: U1C1 | B22: 8 | C22: 19 | D22: Pd1 | E22: 479 | F22: CR
A23: U1C1 | B23: 8 | C23: 3 | D23: Custo de Reforma | E23: 1200 | F23: N
A24: U1C1 | B24: 8 | C24: 11 | D24: Custo de Reforma | E24: 1200 | F24: N
A25: U1C1 | B25: 8 | C25: 19 | D25: VET | E25: 6088.7 | F25: N
A26: U1C1 | B26: 8 | C26: 21 | D26: CLAS | E26: 1 | F26: CI2
A27: U1C1 | B27: 8 | C27: 21 | D27: STOCK | E27: 52.43 | F27: ST1
A28: U1C1 | B28: 66 | C28: 1 | D28: Pd1 | E28: 324 | F28: CR
A29: U1C1 | B29: 66 | C29: 7 | D29: Pd1 | E29: 355 | F29: CC
A30: U1C1 | B30: 66 | C30: 13 | D30: Pd1 | E30: 324 | F30: CR
A31: U1C1 | B31: 66 | C31: 19 | D31: Pd1 | E31: 355 | F31: CC
A32: U1C1 | B32: 66 | C32: 25 | D32: Pd1 | E32: 324 | F32: CR
A33: U1C1 | B33: 66 | C33: 1 | D33: Custo de Reforma | E33: 1200 | F33: N
A34: U1C1 | B34: 66 | C34: 13 | D34: Custo de Reforma | E34: 1200 | F34: N
A35: U1C1 | B35: 66 | C35: 25 | D35: VET | E35: 6088.7 | F35: N
A36: U1C1 | B36: 66 | C36: 21 | D36: CLAS | E36: 1 | F36: CI2
A37: U1C1 | B37: 66 | C37: 21 | D37: STOCK | E37: 59.51 | F37: ST1
A38: U1C1 | B38: 67 | C38: 2 | D38: Pd1 | E38: 378 | F38: CR
A39: U1C1 | B39: 67 | C39: 8 | D39: Pd1 | E39: 355 | F39: CC
A40: U1C1 | B40: 67 | C40: 15 | D40: Pd1 | E40: 378 | F40: CR
A41: U1C1 | B41: 67 | C41: 2 | D41: Custo de Reforma | E41: 1200 | F41: N
A42: U1C1 | B42: 67 | C42: 15 | D42: VET | E42: 6088.7 | F42: N
A43: U1C1 | B43: 67 | C43: 21 | D43: CLAS | E43: 1 | F43: CI6
A44: U1C1 | B44: 67 | C44: 21 | D44: STOCK | E44: 354.6 | F44: ST1
A45: U1C1 | B45: 68 | C45: 3 | D45: Pd1 | E45: 425 | F45: CR
A46: U1C1 | B46: 68 | C46: 9 | D46: Pd1 | E46: 355 | F46: CC
A47: U1C1 | B47: 68 | C47: 17 | D47: Pd1 | E47: 425 | F47: CR
A48: U1C1 | B48: 68 | C48: 3 | D48: Custo de Reforma | E48: 1200 | F48: N
A49: U1C1 | B49: 68 | C49: 17 | D49: VET | E49: 6088.7 | F49: N
A50: U1C1 | B50: 68 | C50: 21 | D50: CLAS | E50: 1 | F50: CI4
A51: U1C1 | B51: 68 | C51: 21 | D51: STOCK | E51: 198.66 | F51: ST1
A52: U1C1 | B52: 76 | C52: 1 | D52: Pd1 | E52: 324 | F52: CR
A53: U1C1 | B53: 76 | C53: 8 | D53: Pd1 | E53: 422 | F53: CC
A54: U1C1 | B54: 76 | C54: 14 | D54: Pd1 | E54: 324 | F54: CR
A55: U1C1 | B55: 76 | C55: 21 | D55: Pd1 | E55: 422 | F55: CC
A56: U1C1 | B56: 76 | C56: 27 | D56: Pd1 | E56: 324 | F56: CR
A57: U1C1 | B57: 76 | C57: 1 | D57: Custo de Reforma | E57: 1200 | F57: N
A58: U1C1 | B58: 76 | C58: 14 | D58: Custo de Reforma | E58: 1200 | F58: N
A59: U1C1 | B59: 76 | C59: 27 | D59: VET | E59: 6088.7 | F59: N
A60: U1C1 | B60: 76 | C60: 21 | D60: CLAS | E60: 1 | F60: CI0
A61: U1C1 | B61: 76 | C61: 21 | D61: STOCK | E61: 0 | F61: ST1
A62: U1C1 | B62: 77 | C62: 2 | D62: Pd1 | E62: 378 | F62: CR
A63: U1C1 | B63: 77 | C63: 9 | D63: Pd1 | E63: 422 | F63: CC
A64: U1C1 | B64: 77 | C64: 16 | D64: Pd1 | E64: 378 | F64: CR
A65: U1C1 | B65: 77 | C65: 2 | D65: Custo de Reforma | E65: 1200 | F65: N
A66: U1C1 | B66: 77 | C66: 16 | D66: VET | E66: 6088.7 | F66: N
A67: U1C1 | B67: 77 | C67: 21 | D67: CLAS | E67: 1 | F67: CI5
A68: U1C1 | B68: 77 | C68: 21 | D68: STOCK | E68: 279.19 | F68: ST1
A69: U1C1 | B69: 78 | C69: 3 | D69: Pd1 | E69: 425 | F69: CR
A70: U1C1 | B70: 78 | C70: 10 | D70: Pd1 | E70: 422 | F70: CC
A71: U1C1 | B71: 78 | C71: 18 | D71: Pd1 | E71: 425 | F71: CR
A72: U1C1 | B72: 78 | C72: 3 | D72: Custo de Reforma | E72: 1200 | F72: N
A73: U1C1 | B73: 78 | C73: 18 | D73: VET | E73: 6088.7 | F73: N
A74: U1C1 | B74: 78 | C74: 21 | D74: CLAS | E74: 1 | F74: CI3
A75: U1C1 | B75: 78 | C75: 21 | D75: STOCK | E75: 119.57 | F75: ST1
A76: U1C1 | B76: 86 | C76: 1 | D76: Pd1 | E76: 324 | F76: CR
A77: U1C1 | B77: 86 | C77: 9 | D77: Pd1 | E77: 479 | F77: CC
A78: U1C1 | B78: 86 | C78: 15 | D78: Pd1 | E78: 324 | F78: CR
A79: U1C1 | B79: 86 | C79: 1 | D79: Custo de Reforma | E79: 1200 | F79: N
A80: U1C1 | B80: 86 | C80: 15 | D80: VET | E80: 6088.7 | F80: N
A81: U1C1 | B81: 86 | C81: 21 | D81: CLAS | E81: 1 | F81: CI6
A82: U1C1 | B82: 86 | C82: 21 | D82: STOCK | E82: 354.6 | F82: ST1
A83: U1C1 | B83: 87 | C83: 2 | D83: Pd1 | E83: 378 | F83: CR
A84: U1C1 | B84: 87 | C84: 10 | D84: Pd1 | E84: 479 | F84: CC
A85: U1C1 | B85: 87 | C85: 17 | D85: Pd1 | E85: 378 | F85: CR
A86: U1C1 | B86: 87 | C86: 2 | D86: Custo de Reforma | E86: 1200 | F86: N
A87: U1C1 | B87: 87 | C87: 17 | D87: VET | E87: 6088.7 | F87: N
A88: U1C1 | B88: 87 | C88: 21 | D88: CLAS | E88: 1 | F88: CI4
A89: U1C1 | B89: 87 | C89: 21 | D89: STOCK | E89: 198.66 | F89: ST1
A90: U1C1 | B90: 88 | C90: 3 | D90: Pd1 | E90: 425 | F90: CR
A91: U1C1 | B91: 88 | C91: 11 | D91: Pd1 | E91: 479 | F91: CC
A92: U1C1 | B92: 88 | C92: 19 | D92: Pd1 | E92: 425 | F92: CR
A93: U1C1 | B93: 88 | C93: 3 | D93: Custo de Reforma | E93: 1200 | F93: N
A94: U1C1 | B94: 88 | C94: 19 | D94: VET | E94: 6088.7 | F94: N
A95: U1C1 | B95: 88 | C95: 21 | D95: CLAS | E95: 1 | F95: CI2
A96: U1C1 | B96: 88 | C96: 21 | D96: STOCK | E96: 52.43 | F96: ST1
A97: U2C1 | B97: 6 | C97: 2 | D97: Pd1 | E97: 366 | F97: CR
A98: U2C1 | B98: 6 | C98: 8 | D98: Pd1 | E98: 380 | F98: CR
A99: U2C1 | B99: 6 | C99: 14 | D99: Pd1 | E99: 380 | F99: CR
A100: U2C1 | B100: 6 | C100: 20 | D100: Pd1 | E100: 380 | F100: CR
A101: U2C1 | B101: 6 | C101: 2 | D101: Custo de Reforma | E101: 1200 | F101: N
A102: U2C1 | B102: 6 | C102: 8 | D102: Custo de Reforma | E102: 1200 | F102: N
A103: U2C1 | B103: 6 | C103: 14 | D103: Custo de Reforma | E103: 1200 | F103: N
A104: U2C1 | B104: 6 | C104: 20 | D104: VET | E104: 6875 | F104: N
A105: U2C1 | B105: 6 | C105: 21 | D105: CLAS | E105: 1 | F105: CI1
A106: U2C1 | B106: 6 | C106: 21 | D106: STOCK | E106: 10.58 | F106: ST1
A107: U2C1 | B107: 7 | C107: 3 | D107: Pd1 | E107: 423 | F107: CR
A108: U2C1 | B108: 7 | C108: 10 | D108: Pd1 | E108: 455 | F108: CR
A109: U2C1 | B109: 7 | C109: 17 | D109: Pd1 | E109: 455 | F109: CR
A110: U2C1 | B110: 7 | C110: 3 | D110: Custo de Reforma | E110: 1200 | F110: N
A111: U2C1 | B111: 7 | C111: 10 | D111: Custo de Reforma | E111: 1200 | F111: N
A112: U2C1 | B112: 7 | C112: 17 | D112: VET | E112: 6875 | F112: N
A113: U2C1 | B113: 7 | C113: 21 | D113: CLAS | E113: 1 | F113: CI4
A114: U2C1 | B114: 7 | C114: 21 | D114: STOCK | E114: 209.16 | F114: ST1
A115: U2C1 | B115: 8 | C115: 4 | D115: Pd1 | E115: 471 | F115: CR
A116: U2C1 | B116: 8 | C116: 12 | D116: Pd1 | E116: 520 | F116: CR
A117: U2C1 | B117: 8 | C117: 20 | D117: Pd1 | E117: 520 | F117: CR
A118: U2C1 | B118: 8 | C118: 4 | D118: Custo de Reforma | E118: 1200 | F118: N
A119: U2C1 | B119: 8 | C119: 12 | D119: Custo de Reforma | E119: 1200 | F119: N
A120: U2C1 | B120: 8 | C120: 20 | D120: VET | E120: 6875 | F120: N
A121: U2C1 | B121: 8 | C121: 21 | D121: CLAS | E121: 1 | F121: CI1
A122: U2C1 | B122: 8 | C122: 21 | D122: STOCK | E122: 10.58 | F122: ST1
A123: U2C1 | B123: 66 | C123: 2 | D123: Pd1 | E123: 366 | F123: CR
A124: U2C1 | B124: 66 | C124: 8 | D124: Pd1 | E124: 380 | F124: CC
A125: U2C1 | B125: 66 | C125: 14 | D125: Pd1 | E125: 366 | F125: CR
A126: U2C1 | B126: 66 | C126: 20 | D126: Pd1 | E126: 380 | F126: CC
A127: U2C1 | B127: 66 | C127: 26 | D127: Pd1 | E127: 366 | F127: CR
A128: U2C1 | B128: 66 | C128: 2 | D128: Custo de Reforma | E128: 1200 | F128: N
A129: U2C1 | B129: 66 | C129: 14 | D129: Custo de Reforma | E129: 1200 | F129: N
A130: U2C1 | B130: 66 | C130: 26 | D130: VET | E130: 6875 | F130: N
A131: U2C1 | B131: 66 | C131: 21 | D131: CLAS | E131: 1 | F131: CI1
A132: U2C1 | B132: 66 | C132: 21 | D132: STOCK | E132: 17.4 | F132: ST1
A133: U2C1 | B133: 67 | C133: 3 | D133: Pd1 | E133: 423 | F133: CR
A134: U2C1 | B134: 67 | C134: 9 | D134: Pd1 | E134: 380 | F134: CC
A135: U2C1 | B135: 67 | C135: 16 | D135: Pd1 | E135: 423 | F135: CR
A136: U2C1 | B136: 67 | C136: 3 | D136: Custo de Reforma | E136: 1200 | F136: N
A137: U2C1 | B137: 67 | C137: 16 | D137: VET | E137: 6875 | F137: N
A138: U2C1 | B138: 67 | C138: 21 | D138: CLAS | E138: 1 | F138: CI5
A139: U2C1 | B139: 67 | C139: 21 | D139: STOCK | E139: 296.62 | F139: ST1
A140: U2C1 | B140: 68 | C140: 4 | D140: Pd1 | E140: 471 | F140: CR
A141: U2C1 | B141: 68 | C141: 10 | D141: Pd1 | E141: 380 | F141: CC
A142: U2C1 | B142: 68 | C142: 18 | D142: Pd1 | E142: 471 | F142: CR
A143: U2C1 | B143: 68 | C143: 4 | D143: Custo de Reforma | E143: 1200 | F143: N
A144: U2C1 | B144: 68 | C144: 18 | D144: VET | E144: 6875 | F144: N
A145: U2C1 | B145: 68 | C145: 21 | D145: CLAS | E145: 1 | F145: CI3
A146: U2C1 | B146: 68 | C146: 21 | D146: STOCK | E146: 124.62 | F146: ST1
A147: U2C1 | B147: 76 | C147: 2 | D147: Pd1 | E147: 366 | F147: CR
A148: U2C1 | B148: 76 | C148: 9 | D148: Pd1 | E148: 455 | F148: CC
A149: U2C1 | B149: 76 | C149: 15 | D149: Pd1 | E149: 366 | F149: CR
A150: U2C1 | B150: 76 | C150: 2 | D150: Custo de Reforma | E150: 1200 | F150: N
A151: U2C1 | B151: 76 | C151: 15 | D151: VET | E151: 6875 | F151: N
A152: U2C1 | B152: 76 | C152: 21 | D152: CLAS | E152: 1 | F152: CI6
A153: U2C1 | B153: 76 | C153: 21 | D153: STOCK | E153: 379.81 | F153: ST1
A154: U2C1 | B154: 77 | C154: 3 | D154: Pd1 | E154: 423 | F154: CR
A155: U2C1 | B155: 77 | C155: 10 | D155: Pd1 | E155: 455 | F155: CC
A156: U2C1 | B156: 77 | C156: 17 | D156: Pd1 | E156: 423 | F156: CR
A157: U2C1 | B157: 77 | C157: 3 | D157: Custo de Reforma | E157: 1200 | F157: N
A158: U2C1 | B158: 77 | C158: 17 | D158: VET | E158: 6875 | F158: N
A159: U2C1 | B159: 77 | C159: 21 | D159: CLAS | E159: 1 | F159: CI4
A160: U2C1 | B160: 77 | C160: 21 | D160: STOCK | E160: 209.16 | F160: ST1
A161: U2C1 | B161: 78 | C161: 4 | D161: Pd1 | E161: 471 | F161: CR
A162: U2C1 | B162: 78 | C162: 11 | D162: Pd1 | E162: 455 | F162: CC
A163: U2C1 | B163: 78 | C163: 19 | D163: Pd1 | E163: 471 | F163: CR
A164: U2C1 | B164: 78 | C164: 4 | D164: Custo de Reforma | E164: 1200 | F164: N
A165: U2C1 | B165: 78 | C165: 19 | D165: VET | E165: 6875 | F165: N
A166: U2C1 | B166: 78 | C166: 21 | D166: CLAS | E166: 1 | F166: CI2
A167: U2C1 | B167: 78 | C167: 21 | D167: STOCK | E167: 54.03 | F167: ST1
A168: U2C1 | B168: 86 | C168: 2 | D168: Pd1 | E168: 366 | F168: CR
A169: U2C1 | B169: 86 | C169: 10 | D169: Pd1 | E169: 520 | F169: CC
A170: U2C1 | B170: 86 | C170: 16 | D170: Pd1 | E170: 366 | F170: CR
A171: U2C1 | B171: 86 | C171: 2 | D171: Custo de Reforma | E171: 1200 | F171: N
A172: U2C1 | B172: 86 | C172: 16 | D172: VET | E172: 6875 | F172: N
A173: U2C1 | B173: 86 | C173: 21 | D173: CLAS | E173: 1 | F173: CI5
A174: U2C1 | B174: 86 | C174: 21 | D174: STOCK | E174: 296.62 | F174: ST1
A175: U2C1 | B175: 87 | C175: 3 | D175: Pd1 | E175: 423 | F175: CR
A176: U2C1 | B176: 87 | C176: 11 | D176: Pd1 | E176: 520 | F176: CC
A177: U2C1 | B177: 87 | C177: 18 | D177: Pd1 | E177: 423 | F177: CR
A178: U2C1 | B178: 87 | C178: 3 | D178: Custo de Reforma | E178: 1200 | F178: N
A179: U2C1 | B179: 87 | C179: 18 | D179: VET | E179: 6875 | F179: N
A180: U2C1 | B180: 87 | C180: 21 | D180: CLAS | E180: 1 | F180: CI3
A181: U2C1 | B181: 87 | C181: 21 | D181: STOCK | E181: 124.62 | F181: ST1
A182: U2C1 | B182: 88 | C182: 4 | D182: Pd1 | E182: 471 | F182: CR
A183: U2C1 | B183: 88 | C183: 12 | D183: Pd1 | E183: 520 | F183: CC
A184: U2C1 | B184: 88 | C184: 20 | D184: Pd1 | E184: 471 | F184: CR
A185: U2C1 | B185: 88 | C185: 4 | D185: Custo de Reforma | E185: 1200 | F185: N
A186: U2C1 | B186: 88 | C186: 20 | D186: VET | E186: 6875 | F186: N
A187: U2C1 | B187: 88 | C187: 21 | D187: CLAS | E187: 1 | F187: CI1
A188: U2C1 | B188: 88 | C188: 21 | D188: STOCK | E188: 10.58 | F188: ST1
A189: U3C1 | B189: 6 | C189: 6 | D189: Pd1 | E189: 306 | F189: CR
A190: U3C1 | B190: 6 | C190: 12 | D190: Pd1 | E190: 306 | F190: CR
A191: U3C1 | B191: 6 | C191: 18 | D191: Pd1 | E191: 306 | F191: CR
A192: U3C1 | B192: 6 | C192: 0 | D192: Custo de Reforma | E192: 1200 | F192: N
A193: U3C1 | B193: 6 | C193: 6 | D193: Custo de Reforma | E193: 1200 | F193: N
A194: U3C1 | B194: 6 | C194: 12 | D194: Custo de Reforma | E194: 1200 | F194: N
A195: U3C1 | B195: 6 | C195: 18 | D195: VET | E195: 4397 | F195: N
A196: U3C1 | B196: 6 | C196: 21 | D196: CLAS | E196: 1 | F196: CI3
A197: U3C1 | B197: 6 | C197: 21 | D197: STOCK | E197: 103.56 | F197: ST1
A198: U3C1 | B198: 7 | C198: 7 | D198: Pd1 | E198: 362 | F198: CR
A199: U3C1 | B199: 7 | C199: 14 | D199: Pd1 | E199: 362 | F199: CR
A200: U3C1 | B200: 7 | C200: 21 | D200: Pd1 | E200: 362 | F200: CR
... 355 more rows

Sheet Estimativas Estoques
A1: Estrato | B1: Idade | C1: rot1 | D1: rot2 | F1: Rot1 | G1: Rot2
A2: U1C1 | B2: 0 | C2: =(F$2*(1-EXP(-1*F$3*$B2)))^F$4 -> 0 | D2: =(G$2*(1-EXP(-1*G$3*$B2)))^G$4 -> 0 | E2: Beta | F2: 10.4 | G2: 14
A3: U1C1 | B3: 1 | C3: =(F$2*(1-EXP(-1*F$3*$B3)))^F$4 -> 10.39215362 | D3: 14.44270103 | E3: Alfa | F3: 0.25 | G3: 0.24
A4: U1C1 | B4: 2 | C4: 52.42800165 | D4: 59.51297088 | E4: Teta | F4: 2.81 | G4: 2.44
A5: U1C1 | B5: 3 | C5: 119.5686972 | D5: 122.9561927
A6: U1C1 | B6: 4 | C6: 198.6604641 | D6: 192.7667638
A7: U1C1 | B7: 5 | C7: 279.1853051 | D7: 261.0851984
A8: U1C1 | B8: 6 | C8: 354.602912 | D8: 323.6030498
A9: U1C1 | B9: 7 | C9: 421.610634 | D9: 378.4329951
A10: U1C2 | B10: 0 | C10: =(F$10*(1-EXP(-1*F$11*$B10)))^F$12 -> 0 | D10: =(G$10*(1-EXP(-1*G$11*$B10)))^G$12 -> 0 | E10: Beta | F10: 10.85 | G10: 13.95
A11: U1C2 | B11: 1 | C11: =(F$10*(1-EXP(-1*F$11*$B11)))^F$12 -> 10.57875433 | D11: 17.40231977 | E11: Alfa | F11: 0.24 | G11: 0.26
A12: U1C2 | B12: 2 | C12: 54.03191484 | D12: 70.99960359 | E12: Teta | F12: 2.81 | G12: 2.46
A13: U1C2 | B13: 3 | C13: 124.6167935 | D13: 144.7072151
A14: U1C2 | B14: 4 | C14: 209.1561881 | D14: 223.7309258
A15: U1C2 | B15: 5 | C15: 296.6192354 | D15: 299.0301884
A16: U1C2 | B16: 6 | C16: 379.8105777 | D16: 366.1264985
A17: U1C2 | B17: 7 | C17: 454.8323431 | D17: 423.4479222
A18: U1C3 | B18: 0 | C18: =(F$18*(1-EXP(-1*F$19*$B18)))^F$20 -> 0 | D18: =(G$18*(1-EXP(-1*G$19*$B18)))^G$20 -> 0 | E18: Beta | F18: 9.3 | G18: 12.1
A19: U1C3 | B19: 1 | C19: =(F$18*(1-EXP(-1*F$19*$B19)))^F$20 -> 8.749698504 | D19: =(G$18*(1-EXP(-1*G$19*$B19)))^G$20 -> 13.870572 | E19: Alfa | F19: 0.26 | G19: 0.27
A20: U1C3 | B20: 2 | C20: 45.12494281 | D20: 57.27417428 | E20: Teta | F20: 2.87 | G20: 2.5
A21: U1C3 | B21: 3 | C21: 103.5595059 | D21: 116.942806
A22: U1C3 | B22: 4 | C22: 172.1730248 | D22: 180.5046704
A23: U1C3 | B23: 5 | C23: 241.5195515 | D23: 240.5231325
A24: U1C3 | B24: 6 | C24: 305.8588907 | D24: 293.4515972
A25: U1C3 | B25: 7 | C25: 362.4249551 | D25: 338.1744679
A26: U1C4 | B26: 0 | C26: =(F$26*(1-EXP(-1*F$27*$B26)))^F$28 -> 0 | D26: =(G$26*(1-EXP(-1*G$27*$B26)))^G$28 -> 0 | E26: Beta | F26: 16 | G26: 15.13
A27: U1C4 | B27: 1 | C27: =(F$26*(1-EXP(-1*F$27*$B27)))^F$28 -> 8.432622759 | D27: =(G$26*(1-EXP(-1*G$27*$B27)))^G$28 -> 8.839591719 | E27: Alfa | F27: 0.18 | G27: 0.2
A28: U1C4 | B28: 2 | C28: 32.07027666 | D28: 32.17599404 | E28: Teta | F28: 2.2 | G28: 2.16
A29: U1C4 | B29: 3 | C29: 65.15382596 | D29: 63.36728916
A30: U1C4 | B30: 4 | C30: 102.7503879 | D30: 97.44943158
A31: U1C4 | B31: 5 | C31: 141.4091151 | D31: 131.2743576
A32: U1C4 | B32: 6 | C32: 178.9146805 | D32: 163.0279661
A33: U1C4 | B33: 7 | C33: 213.9607812 | D33: 191.7923123
A34: U1C5 | B34: 0 | C34: =(F$34*(1-EXP(-1*F$35*$B34)))^F$36 -> 0 | D34: =(G$34*(1-EXP(-1*G$35*$B34)))^G$36 -> 0 | E34: Beta | F34: 12.6 | G34: 14.5
A35: U1C5 | B35: 1 | C35: =(F$34*(1-EXP(-1*F$35*$B35)))^F$36 -> 11.85142684 | D35: =(G$34*(1-EXP(-1*G$35*$B35)))^G$36 -> 12.58729574 | E35: Alfa | F35: 0.24 | G35: 0.23
A36: U1C5 | B36: 2 | C36: 50.56568504 | D36: 48.87650418 | E36: Teta | F36: 2.5 | G36: 2.32
A37: U1C5 | B37: 3 | C37: 106.3515896 | D37: 98.35652598
A38: U1C5 | B38: 4 | C38: 168.5884219 | D38: 152.1137716
A39: U1C5 | B39: 5 | C39: 230.0475416 | D39: 204.5339916
A40: U1C5 | B40: 6 | C40: 286.6424459 | D40: 252.5765376
A41: U1C5 | B41: 7 | C41: 336.5026127 | D41: 294.9063133
A42: U1C6 | B42: 0 | C42: =(F$42*(1-EXP(-1*F$43*$B42)))^F$44 -> 0 | D42: =(G$42*(1-EXP(-1*G$43*$B42)))^G$44 -> 0 | E42: Beta | F42: 9 | G42: 10.6
A43: U1C6 | B43: 1 | C43: =(F$42*(1-EXP(-1*F$43*$B43)))^F$44 -> 6.019927795 | D43: =(G$42*(1-EXP(-1*G$43*$B43)))^G$44 -> 9.762517106 | E43: Alfa | F43: 0.23 | G43: 0.26
A44: U1C6 | B44: 2 | C44: 33.1993774 | D44: 42.41466299 | E44: Teta | F44: 2.92 | G44: 2.57
A45: U1C6 | B45: 3 | C45: 80.05286414 | D45: 89.24375403
A46: U1C6 | B46: 4 | C46: 138.5849365 | D46: 140.6939522
A47: U1C6 | B47: 5 | C47: 201.1735226 | D47: 190.5013683
A48: U1C6 | B48: 6 | C48: 262.3584777 | D48: 235.3669264
A49: U1C6 | B49: 7 | C49: 318.8519141 | D49: 273.992644
